Workbook

Sheet Доходы
H1: RESPPERSONS&=
A2: ОТЧЕТ ОБ ИСПОЛНЕНИИ БЮДЖЕТА | F2: КОДЫ
E3: Форма по ОКУД | F3: 0503117 | H3: C:\117M1.txt
A4: на 01 марта 2015 года | E4: Дата | F4: 01.03.2015 | H4: 01.03.2015
E5: по ОКПО | F5: 04032907 | H5: 117
A6: Наименование финансового органа: | B6: Администрация МО "Город Пикалево" | E6: Глава по БК | F6: 001 | H6: 3
A7: Наименование публично-правового образования: | B7: Бюджет МО "Город Пикалево" Бокситогорского муниципального района Ленинградской области | E7: по ОКТМО | F7: 41603102
A8: Периодичность: месячная
A9: Единица измерения: руб. | E9: по ОКЕИ | F9: 383 | H9: 1
A10: 1. Доходы бюджета
A11: Наименование показателя | B11: Код строки | C11: Код дохода по бюджетной классификации | D11: Утвержденные бюджетные назначения | E11: Исполнено | F11: Неисполненные назначения
A18: 1 | B18: 2 | C18: 3 | D18: 4 | E18: 5 | F18: 6
A19: Доходы бюджета - всего | B19: 010 | C19: X | D19: 212763316.3 | E19: -35613621.74 | F19: =IF(OR(D19="-",E19=D19),"-",D19-IF(E19="-",0,E19)) -> 248376938.1
A20: в том числе:
A21: НАЛОГОВЫЕ И НЕНАЛОГОВЫЕ ДОХОДЫ | B21: 010 | C21: 000 10000000000000 000 | D21: 108464420.2 | E21: 13522961.42 | F21: =IF(OR(D21="-",E21=D21),"-",D21-IF(E21="-",0,E21)) -> 94941458.78
A22: НАЛОГИ НА ПРИБЫЛЬ, ДОХОДЫ | B22: 010 | C22: 000 10100000000000 000 | D22: 27987200 | E22: 3982645.02 | F22: 24004554.98
A23: Налог на доходы физических лиц | B23: 010 | C23: 000 10102000010000 110 | D23: 27987200 | E23: 3982645.02 | F23: 24004554.98
A24: Налог на доходы физических лиц с доходов, источником которых является налоговый агент, за исключением доходов, в отношении которых исчисление и уплата налога осуществляются в соответствии со статьями 227, 227.1 и 228 Налогового кодекса Российской Федерации | B24: 010 | C24: 000 10102010010000 110 | D24: 27976501.72 | E24: 3971946.74 | F24: 24004554.98
A25: Налог на доходы физических лиц с доходов, источником которых является налоговый агент, за исключением доходов, в отношении которых исчисление и уплата налога осуществляются в соответствии со статьями 227, 227.1 и 228 Налогового кодекса Российской Федерации (сумма платежа (перерасчеты, недоимка и задолженность по соответствующему платежу, в том числе по отмененному)) | B25: 010 | C25: 000 10102010011000 110 | D25: 27976501.72 | E25: 3964630.54 | F25: 24011871.18
A26: Налог на доходы физических лиц с доходов, источником которых является налоговый агент, за исключением доходов, в отношении которых исчисление и уплата налога осуществляются в соответствии со статьями 227, 227.1 и 228 Налогового кодекса Российской Федерации (пени по соответствующему платежу) | B26: 010 | C26: 000 10102010012100 110 | D26: - | E26: 2272.9 | F26: -
A27: Налог на доходы физических лиц с доходов, источником которых является налоговый агент, за исключением доходов, в отношении которых исчисление и уплата налога осуществляются в соответствии со статьями 227, 227.1 и 228 Налогового кодекса Российской Федерации (суммы денежных взысканий (штрафов) по соответствующему платежу согласно законодательству Российской Федерации) | B27: 010 | C27: 000 10102010013000 110 | D27: - | E27: 5043.3 | F27: -
A28: Налог на доходы физических лиц с доходов, полученных от осуществления деятельности физическими лицами, зарегистрированными в качестве индивидуальных предпринимателей, нотариусов, занимающихся частной практикой, адвокатов, учредивших адвокатские кабинеты и других лиц, занимающихся частной практикой в соответствии со статьей 227 Налогового кодекса Российской Федерации | B28: 010 | C28: 000 10102020010000 110 | D28: 1910.54 | E28: 1910.54 | F28: -
A29: Налог на доходы физических лиц с доходов, полученных от осуществления деятельности физическими лицами, зарегистрированными в качестве индивидуальных предпринимателей, нотариусов, занимающихся частной практикой, адвокатов, учредивших адвокатские кабинеты и других лиц, занимающихся частной практикой в соответствии со статьей 227 Налогового кодекса Российской Федерации (сумма платежа (перерасчеты, недоимка и задолженность по соответствующему платежу, в том числе по отмененному)) | B29: 010 | C29: 000 10102020011000 110 | D29: 1910.54 | E29: 1790 | F29: 120.54
A30: Налог на доходы физических лиц с доходов, полученных от осуществления деятельности физическими лицами, зарегистрированными в качестве индивидуальных предпринимателей, нотариусов, занимающихся частной практикой, адвокатов, учредивших адвокатские кабинеты и других лиц, занимающихся частной практикой в соответствии со статьей 227 Налогового кодекса Российской Федерации (суммы денежных взысканий (штрафов) по соответствующему платежу согласно законодательству Российской Федерации) | B30: 010 | C30: 000 10102020013000 110 | D30: - | E30: 120.54 | F30: -
A31: Налог на доходы физических лиц с доходов, полученных физическими лицами в соответствии со статьей 228 Налогового Кодекса Российской Федерации | B31: 010 | C31: 000 10102030010000 110 | D31: 8787.74 | E31: 8787.74 | F31: -
A32: Налог на доходы физических лиц с доходов, полученных физическими лицами в соответствии со статьей 228 Налогового Кодекса Российской Федерации (сумма платежа (перерасчеты, недоимка и задолженность по соответствующему платежу, в том числе по отмененному)) | B32: 010 | C32: 000 10102030011000 110 | D32: 8787.74 | E32: 5365.84 | F32: 3421.9
A33: Налог на доходы физических лиц с доходов, полученных физическими лицами в соответствии со статьей 228 Налогового кодекса Российской Федерации (пени по соответствующему платежу) | B33: 010 | C33: 000 10102030012100 110 | D33: - | E33: 15.36 | F33: -
A34: Налог на доходы физических лиц с доходов, полученных физическими лицами в соответствии со статьей 228 Налогового Кодекса Российской Федерации (суммы денежных взысканий (штрафов) по соответствующему платежу согласно законодательству Российской Федерации) | B34: 010 | C34: 000 10102030013000 110 | D34: - | E34: 2296.9 | F34: -
A35: Налог на доходы физических лиц с доходов, полученных физическими лицами в соответствии со статьей 228 Налогового Кодекса Российской Федерации (прочие поступления) | B35: 010 | C35: 000 10102030014000 110 | D35: - | E35: 1109.64 | F35: -
A36: НАЛОГИ НА ТОВАРЫ (РАБОТЫ, УСЛУГИ), РЕАЛИЗУЕМЫЕ НА ТЕРРИТОРИИ РОССИЙСКОЙ ФЕДЕРАЦИИ | B36: 010 | C36: 000 10300000000000 000 | D36: 1854100 | E36: 183457.81 | F36: 1670642.19
A37: Акцизы по подакцизным товарам (продукции), производимым на территории Российской Федерации | B37: 010 | C37: 000 10302000010000 110 | D37: 1854100 | E37: 183457.81 | F37: 1670642.19
A38: Доходы от уплаты акцизов на дизельное топливо, зачисляемые в консолидированные бюджеты субъектов Российской Федерации | B38: 010 | C38: 000 10302230010000 110 | D38: 705000 | E38: 69131.19 | F38: 635868.81
A39: Доходы от уплаты акцизов на моторные масла для дизельных и (или) карбюраторных (инжекторных) двигателей, зачисляемые в консолидированные бюджеты субъектов Российской Федерации | B39: 010 | C39: 000 10302240010000 110 | D39: 20000 | E39: 1653.99 | F39: 18346.01
A40: Доходы от уплаты акцизов на автомобильный бензин, производимый на территории Российской Федерации, зачисляемые в консолидированные бюджеты субъектов Российской Федерации | B40: 010 | C40: 000 10302250010000 110 | D40: 1110000 | E40: 120319.96 | F40: 989680.04
A41: Доходы от уплаты акцизов на прямогонный бензин, производимый на территории Российской Федерации, зачисляемые в консолидированные бюджеты субъектов Российской Федерации | B41: 010 | C41: 000 10302260010000 110 | D41: 19100 | E41: -7647.33 | F41: 26747.33
A42: НАЛОГИ НА СОВОКУПНЫЙ ДОХОД | B42: 010 | C42: 000 10500000000000 000 | D42: 3600 | E42: - | F42: 3600
A43: Единый сельскохозяйственный налог | B43: 010 | C43: 000 10503000010000 110 | D43: 3600 | E43: - | F43: 3600
A44: Единый сельскохозяйственный налог | B44: 010 | C44: 000 10503010010000 110 | D44: 3600 | E44: - | F44: 3600
A45: Единый сельскохозяйственный налог (сумма платежа (перерасчеты, недоимка и задолженность по соответствующему платежу, в том числе по отмененному)) | B45: 010 | C45: 000 10503010011000 110 | D45: 3600 | E45: - | F45: 3600
A46: НАЛОГИ НА ИМУЩЕСТВО | B46: 010 | C46: 000 10600000000000 000 | D46: 42196700 | E46: 6807675.76 | F46: 35389024.24
A47: Налог на имущество физических лиц | B47: 010 | C47: 000 10601000000000 110 | D47: 1309700 | E47: 57693.1 | F47: 1252006.9
A48: Налог на имущество физических лиц, взимаемый по ставкам, применяемым к объектам налогообложения, расположенным в границах городских поселений | B48: 010 | C48: 000 10601030130000 110 | D48: 1309700 | E48: 57693.1 | F48: 1252006.9
A49: Налог на имущество физических лиц, взимаемый по ставкам, применяемым к объектам налогообложения, расположенным в границах городских поселений (сумма платежа (перерасчеты, недоимка и задолженность по соответствующему платежу, в том числе по отмененному) | B49: 010 | C49: 000 10601030131000 110 | D49: 1309700 | E49: 57237.55 | F49: 1252462.45
A50: Налог на имущество физических лиц, взимаемый по ставкам, применяемым к объектам налогообложения, расположенным в границах городских поселений (пени по соответствующему платежу) | B50: 010 | C50: 000 10601030132100 110 | D50: - | E50: 410.59 | F50: -
A51: Налог на имущество физических лиц, взимаемый по ставкам, применяемым к объектам налогообложения, расположенным в границах городских поселений (прочие поступления) | B51: 010 | C51: 000 10601030134000 110 | D51: - | E51: 44.96 | F51: -
A52: Транспортный налог | B52: 010 | C52: 000 10604000020000 110 | D52: 11356000 | E52: 930090.74 | F52: 10425909.26
A53: Транспортный налог с организаций | B53: 010 | C53: 000 10604011020000 110 | D53: 2800000 | E53: 641092.69 | F53: =IF(OR(D53="-",E53=D53),"-",D53-IF(E53="-",0,E53)) -> 2158907.31
A54: Транспортный налог с организаций (сумма платежа (перерасчеты, недоимка и задолженность по соответствующему платежу, в том числе по отмененному)) | B54: 010 | C54: 000 10604011021000 110 | D54: 2800000 | E54: 640981.3 | F54: 2159018.7
A55: Транспортный налог с организаций (пени по соответствующему платежу) | B55: 010 | C55: 000 10604011022100 110 | D55: - | E55: 111.39 | F55: -
A56: Транспортный налог с физических лиц | B56: 010 | C56: 000 10604012020000 110 | D56: 8556000 | E56: 288998.05 | F56: 8267001.95
A57: Транспортный налог с физических лиц (сумма платежа (перерасчеты, недоимка и задолженность по соответствующему платежу, в том числе по отмененному)) | B57: 010 | C57: 000 10604012021000 110 | D57: 8556000 | E57: 271541.65 | F57: 8284458.35
A58: Транспортный налог с физических лиц (пени по соответствующему платежу) | B58: 010 | C58: 000 10604012022100 110 | D58: - | E58: 16666.42 | F58: -
A59: Транспортный налог с физических лиц (проценты по соответствующему платежу) | B59: 010 | C59: 000 10604012022200 110 | D59: - | E59: 112.53 | F59: -
A60: Транспортный налог с физических лиц (прочие поступления) | B60: 010 | C60: 000 10604012024000 110 | D60: - | E60: 677.45 | F60: -
A61: Земельный налог | B61: 010 | C61: 000 10606000000000 110 | D61: 29531000 | E61: 5819891.92 | F61: 23711108.08
A62: Земельный налог с организаций | B62: 010 | C62: 000 10606030030000 110 | D62: 28861000 | E62: 5634261.56 | F62: 23226738.44
A63: Земельный налог с организаций, обладающих земельным участком, расположенным в границах городских поселений | B63: 010 | C63: 000 10606033130000 110 | D63: 28861000 | E63: 5634261.56 | F63: 23226738.44
A64: Земельный налог с физических лиц | B64: 010 | C64: 000 10606040000000 110 | D64: 670000 | E64: 185630.36 | F64: 484369.64
A65: Земельный налог с физических лиц, обладающих земельным участком, расположенным в границах городских поселений | B65: 010 | C65: 000 10606043130000 110 | D65: 670000 | E65: 185630.36 | F65: 484369.64
A66: ГОСУДАРСТВЕННАЯ ПОШЛИНА | B66: 010 | C66: 000 10800000000000 000 | D66: 48400 | E66: 2000 | F66: 46400
A67: Государственная пошлина за государственную регистрацию, а также за совершение прочих юридически значимых действий | B67: 010 | C67: 000 10807000010000 110 | D67: 48400 | E67: 2000 | F67: 46400
A68: Государственная пошлина за выдачу специального разрешения на движение по автомобильным дорогам транспортных средств, осуществляющих перевозки опасных, тяжеловесных и (или) крупногабаритных грузов | B68: 010 | C68: 000 10807170010000 110 | D68: 48400 | E68: 2000 | F68: 46400
A69: Государственная пошлина за выдачу органом местного самоуправления поселения специального разрешения на движение по автомобильным дорогам транспортных средств, осуществляющих перевозки опасных, тяжеловесных и (или) крупногабаритных грузов, зачисляемая в бюджеты поселений | B69: 010 | C69: 000 10807175010000 110 | D69: 48400 | E69: 2000 | F69: 46400
A70: ДОХОДЫ ОТ ИСПОЛЬЗОВАНИЯ ИМУЩЕСТВА, НАХОДЯЩЕГОСЯ В ГОСУДАРСТВЕННОЙ И МУНИЦИПАЛЬНОЙ СОБСТВЕННОСТИ | B70: 010 | C70: 000 11100000000000 000 | D70: 31865181.86 | E70: 1995935 | F70: 29869246.86
A71: Доходы, получаемые в виде арендной либо иной платы за передачу в возмездное пользование государственного и муниципального имущества (за исключением имущества бюджетных и автономных учреждений, а также имущества государственных и муниципальных унитарных предприятий, в том числе казенных) | B71: 010 | C71: 000 11105000000000 120 | D71: 29684181.86 | E71: 1563080.53 | F71: 28121101.33
A72: Доходы, получаемые в виде арендной платы за земельные участки, государственная собственность на которые не разграничена, а также средства от продажи права на заключение договоров аренды указанных земельных участков | B72: 010 | C72: 000 11105010000000 120 | D72: 17444300 | E72: 168621.31 | F72: 17275678.69
A73: Доходы, получаемые в виде арендной платы за земельные участки, государственная собственность на которые не разграничена и которые расположены в границах городских поселений, а также средства от продажи права на заключение договоров аренды указанных земельных участков | B73: 010 | C73: 000 11105013130000 120 | D73: 17444300 | E73: 168621.31 | F73: 17275678.69
A74: Доходы, получаемые в виде арендной платы за земли после разграничения государственной собственности на землю, а также средства от продажи права на заключение договоров аренды указанных земельных участков (за исключением земельных участков бюджетных и автономных учреждений) | B74: 010 | C74: 000 11105020000000 120 | D74: 1174000 | E74: 49477.83 | F74: 1124522.17
A75: Доходы, получаемые в виде арендной платы, а также средства от продажи права на заключение договоров аренды за земли, находящиеся в собственности городских поселений (за исключением земельных участков муниципальных бюджетных и автономных учреждений) | B75: 010 | C75: 000 11105025130000 120 | D75: 1174000 | E75: 49477.83 | F75: 1124522.17
A76: Доходы от сдачи в аренду имущества, находящегося в оперативном управлении органов государственной власти, органов местного самоуправления, государственных внебюджетных фондов и созданных ими учреждений (за исключением имущества бюджетных и автономных учреждений) | B76: 010 | C76: 000 11105030000000 120 | D76: 65881.86 | E76: 618.08 | F76: 65263.78
A77: Доходы от сдачи в аренду имущества, находящегося в оперативном управлении органов управления городских поселений и созданных ими учреждений (за исключением имущества муниципальных бюджетных и автономных учреждений) | B77: 010 | C77: 000 11105035130000 120 | D77: 65881.86 | E77: 618.08 | F77: 65263.78
A78: Доходы от сдачи в аренду имущества, составляющего государственную (муниципальную) казну (за исключением земельных участков) | B78: 010 | C78: 000 11105070000000 120 | D78: 11000000 | E78: 1344363.31 | F78: 9655636.69
A79: Доходы от сдачи в аренду имущества, составляющего казну городских поселений (за исключением земельных участков) | B79: 010 | C79: 000 11105075130000 120 | D79: 11000000 | E79: 1344363.31 | F79: 9655636.69
A80: Платежи от государственных и муниципальных унитарных предприятий | B80: 010 | C80: 000 11107000000000 120 | D80: 1000 | E80: - | F80: 1000
A81: Доходы от перечисления части прибыли государственных и муниципальных унитарных предприятий, остающейся после уплаты налогов и обязательных платежей | B81: 010 | C81: 000 11107010000000 120 | D81: 1000 | E81: - | F81: 1000
A82: Доходы от перечисления части прибыли, остающейся после уплаты налогов и иных обязательных платежей муниципальных унитарных предприятий, созданных городскими поселениями | B82: 010 | C82: 000 11107015130000 120 | D82: 1000 | E82: - | F82: 1000
A83: Прочие доходы от использования имущества и прав, находящихся в государственной и муниципальной собственности (за исключением имущества бюджетных и автономных учреждений, а также имущества государственных и муниципальных унитарных предприятий, в том числе казенных) | B83: 010 | C83: 000 11109000000000 120 | D83: 2180000 | E83: 432854.47 | F83: 1747145.53
A84: Прочие поступления от использования имущества, находящегося в государственной и муниципальной собственности (за исключением имущества бюджетных и автономных учреждений, а также имущества государственных и муниципальных унитарных предприятий, в том числе казенных) | B84: 010 | C84: 000 11109040000000 120 | D84: 2180000 | E84: 432854.47 | F84: 1747145.53
A85: Прочие поступления от использования имущества, находящегося в собственности городских поселений (за исключением имущества муниципальных бюджетных и автономных учреждений, а также имущества муниципальных унитарных предприятий, в том числе казенных) | B85: 010 | C85: 000 11109045130000 120 | D85: 2180000 | E85: 432854.47 | F85: =IF(OR(D85="-",E85=D85),"-",D85-IF(E85="-",0,E85)) -> 1747145.53
A86: ДОХОДЫ ОТ ОКАЗАНИЯ ПЛАТНЫХ УСЛУГ (РАБОТ) И КОМПЕНСАЦИИ ЗАТРАТ ГОСУДАРСТВА | B86: 010 | C86: 000 11300000000000 000 | D86: 59238.34 | E86: 109095.49 | F86: -49857.15
A87: Доходы от оказания платных услуг (работ) | B87: 010 | C87: 000 11301000000000 130 | D87: 59238.34 | E87: 109095.49 | F87: -49857.15
A88: Прочие доходы от оказания платных услуг (работ) | B88: 010 | C88: 000 11301990000000 130 | D88: 59238.34 | E88: 109095.49 | F88: -49857.15
A89: Прочие доходы от оказания платных услуг (работ) получателями средств бюджетов городских поселений | B89: 010 | C89: 000 11301995130001 130 | D89: - | E89: 97390.35 | F89: -
A90: Прочие доходы от оказания платных услуг (работ) получателями средств бюджетов городских поселений | B90: 010 | C90: 000 11301995130005 130 | D90: 59238.34 | E90: 11705.14 | F90: 47533.2
A91: ДОХОДЫ ОТ ПРОДАЖИ МАТЕРИАЛЬНЫХ И НЕМАТЕРИАЛЬНЫХ АКТИВОВ | B91: 010 | C91: 000 11400000000000 000 | D91: 4200000 | E91: 445158.58 | F91: 3754841.42
A92: Доходы от реализации имущества, находящегося в государственной и муниципальной собственности (за исключением имущества бюджетных и автономных учреждений, а также имущества государственных и муниципальных унитарных предприятий, в том числе казенных) | B92: 010 | C92: 000 11402000000000 000 | D92: 4000000 | E92: 416274.26 | F92: 3583725.74
A93: Доходы от реализации имущества, находящегося в собственности городских поселений (за исключением движимого имущества муниципальных бюджетных и автономных учреждений, а также имущества муниципальных унитарных предприятий, в том числе казенных), в части реализации основных средств по указанному имуществу | B93: 010 | C93: 000 11402050130000 410 | D93: 4000000 | E93: 416274.26 | F93: 3583725.74
A94: Доходы от реализации иного имущества, находящегося в собственности городских поселений (за исключением имущества муниципальных бюджетных и автономных учреждений, а также имущества муниципальных унитарных предприятий, в том числе казенных), в части реализации основных средств по указанному имуществу | B94: 010 | C94: 000 11402053130000 410 | D94: 4000000 | E94: 416274.26 | F94: 3583725.74
A95: Доходы от продажи земельных участков, находящихся в государственной и муниципальной собственности (за исключением земельных участков бюджетных и автономных учреждений) | B95: 010 | C95: 000 11406000000000 430 | D95: 200000 | E95: 28884.32 | F95: 171115.68
A96: Доходы от продажи земельных участков, государственная собственность на которые не разграничена | B96: 010 | C96: 000 11406010000000 430 | D96: 200000 | E96: 28884.32 | F96: 171115.68
A97: Доходы от продажи земельных участков, государственная собственность на которые не разграничена и которые расположены в границах городских поселений | B97: 010 | C97: 000 11406013130000 430 | D97: 200000 | E97: 28884.32 | F97: 171115.68
A98: ШТРАФЫ, САНКЦИИ, ВОЗМЕЩЕНИЕ УЩЕРБА | B98: 010 | C98: 000 11600000000000 000 | D98: 250000 | E98: 5617.3 | F98: 244382.7
A99: Поступления сумм в возмещение вреда, причиняемого автомобильным дорогам транспортными средствами, осуществляющими перевозки тяжеловесных и (или) крупногабаритных грузов | B99: 010 | C99: 000 11637000000000 140 | D99: 50000 | E99: 417.3 | F99: 49582.7
A100: Поступления сумм в возмещение вреда, причиняемого автомобильным дорогам местного значения транспортными средствами, осуществляющими перевозки тяжеловесных и (или) крупногабаритных грузов, зачисляемые в бюджеты городских поселений | B100: 010 | C100: 000 11637040130000 140 | D100: 50000 | E100: 417.3 | F100: 49582.7
A101: Прочие поступления от денежных взысканий (штрафов) и иных сумм в возмещение ущерба | B101: 010 | C101: 000 11690000000000 140 | D101: 200000 | E101: 5200 | F101: 194800
A102: Прочие поступления от денежных взысканий (штрафов) и иных сумм в возмещение ущерба, зачисляемые в бюджеты городских поселений | B102: 010 | C102: 000 11690050130000 140 | D102: 200000 | E102: 5200 | F102: 194800
A103: ПРОЧИЕ НЕНАЛОГОВЫЕ ДОХОДЫ | B103: 010 | C103: 000 11700000000000 000 | D103: - | E103: -8623.54 | F103: -
A104: Невыясненные поступления | B104: 010 | C104: 000 11701000000000 180 | D104: - | E104: -8623.54 | F104: -
A105: Невыясненные поступления, зачисляемые в бюджеты городских поселений | B105: 010 | C105: 000 11701050130000 180 | D105: - | E105: -8623.54 | F105: -
A106: БЕЗВОЗМЕЗДНЫЕ ПОСТУПЛЕНИЯ | B106: 010 | C106: 000 20000000000000 000 | D106: 104298896.2 | E106: -49136583.16 | F106: 153435479.3
A107: БЕЗВОЗМЕЗДНЫЕ ПОСТУПЛЕНИЯ ОТ ДРУГИХ БЮДЖЕТОВ БЮДЖЕТНОЙ СИСТЕМЫ РОССИЙСКОЙ ФЕДЕРАЦИИ | B107: 010 | C107: 000 20200000000000 000 | D107: 104298896.2 | E107: 1634240 | F107: 102664656.2
A108: Дотации бюджетам субъектов Российской Федерации и муниципальных образований | B108: 010 | C108: 000 20201000000000 151 | D108: 5206300 | E108: 1041260 | F108: 4165040
A109: Дотации на выравнивание бюджетной обеспеченности | B109: 010 | C109: 000 20201001000000 151 | D109: 5206300 | E109: 1041260 | F109: 4165040
A110: Дотации бюджетам городских поселений на выравнивание бюджетной обеспеченности | B110: 010 | C110: 000 20201001130000 151 | D110: 5206300 | E110: 1041260 | F110: 4165040
A111: Субсидии бюджетам бюджетной системы Российской Федерации (межбюджетные субсидии) | B111: 010 | C111: 000 20202000000000 151 | D111: 72817489.77 | E111: - | F111: 72817489.77
A112: Субсидии бюджетам на софинансирование капитальных вложений в объекты государственной (муниципальной) собственности | B112: 010 | C112: 000 20202077000000 151 | D112: 20000000 | E112: - | F112: 20000000
A113: Субсидии бюджетам городских поселений на софинансирование капитальных вложений в объекты муниципальной собственности | B113: 010 | C113: 000 20202077130000 151 | D113: 20000000 | E113: - | F113: 20000000
A114: Субсидии бюджетам муниципальных образований на обеспечение мероприятий по капитальному ремонту многоквартирных домов, переселению граждан из аварийного жилищного фонда и модернизации систем коммунальной инфраструктуры за счет средств бюджетов | B114: 010 | C114: 000 20202089000000 151 | D114: 46962489.77 | E114: - | F114: 46962489.77
A115: Субсидии бюджетам городских поселений на обеспечение мероприятий по капитальному ремонту многоквартирных домов, переселению граждан из аварийного жилищного фонда и модернизации систем коммунальной инфраструктуры за счет средств бюджетов | B115: 010 | C115: 000 20202089130000 151 | D115: 46962489.77 | E115: - | F115: 46962489.77
A116: Прочие субсидии | B116: 010 | C116: 000 20202999000000 151 | D116: 5855000 | E116: - | F116: 5855000
A117: Прочие субсидии бюджетам городских поселений | B117: 010 | C117: 000 20202999130000 151 | D117: 5855000 | E117: - | F117: =IF(OR(D117="-",E117=D117),"-",D117-IF(E117="-",0,E117)) -> 5855000
A118: Субвенции бюджетам субъектов Российской Федерации и муниципальных образований | B118: 010 | C118: 000 20203000000000 151 | D118: 2223798 | E118: 592980 | F118: 1630818
A119: Субвенции бюджетам на осуществление первичного воинского учета на территориях, где отсутствуют военные комиссариаты | B119: 010 | C119: 000 20203015000000 151 | D119: 1100598 | E119: 312180 | F119: 788418
A120: Субвенции бюджетам городских поселений на осуществление первичного воинского учета на территориях, где отсутствуют военные комиссариаты | B120: 010 | C120: 000 20203015130000 151 | D120: 1100598 | E120: 312180 | F120: 788418
A121: Субвенции местным бюджетам на выполнение передаваемых полномочий субъектов Российской Федерации | B121: 010 | C121: 000 20203024000000 151 | D121: 1123200 | E121: 280800 | F121: 842400
A122: Субвенции бюджетам городских поселений на выполнение передаваемых полномочий субъектов Российской Федерации | B122: 010 | C122: 000 20203024130000 151 | D122: 1123200 | E122: 280800 | F122: 842400
A123: Иные межбюджетные трансферты | B123: 010 | C123: 000 20204000000000 151 | D123: 24051308.38 | E123: - | F123: 24051308.38
A124: Прочие межбюджетные трансферты, передаваемые бюджетам | B124: 010 | C124: 000 20204999000000 151 | D124: 24051308.38 | E124: - | F124: 24051308.38
A125: Прочие межбюджетные трансферты, передаваемые бюджетам городских поселений | B125: 010 | C125: 000 20204999130000 151 | D125: 24051308.38 | E125: - | F125: 24051308.38
A126: ВОЗВРАТ ОСТАТКОВ СУБСИДИЙ, СУБВЕНЦИЙ И ИНЫХ МЕЖБЮДЖЕТНЫХ ТРАНСФЕРТОВ, ИМЕЮЩИХ ЦЕЛЕВОЕ НАЗНАЧЕНИЕ, ПРОШЛЫХ ЛЕТ | B126: 010 | C126: 000 21900000000000 000 | D126: - | E126: -50770823.16 | F126: -
A127: Возврат остатков субсидий, субвенций и иных межбюджетных трансфертов, имеющих целевое назначение, прошлых лет из бюджетов городских поселений | B127: 010 | C127: 000 21905000130000 151 | D127: - | E127: -50770823.16 | F127: -

Sheet Расходы
A2: 2. Расходы бюджета | F2: Форма 0503117 с.2
A4: Наименование показателя | B4: Код строки | C4: Код расхода по бюджетной классификации | D4: Утвержденные бюджетные назначения | E4: Исполнено | F4: Неисполненные назначения
A12: 1 | B12: 2 | C12: 3 | D12: 4 | E12: 5 | F12: 6
A13: Расходы бюджета - всего | B13: 200 | C13: *** 96000000000000 000 | D13: 232986168.8 | E13: 10391153.1 | F13: =IF(OR(D13="-",E13=D13),"-",D13-IF(E13="-",0,E13)) -> 222595015.7
A14: в том числе:
A15: ОБЩЕГОСУДАРСТВЕННЫЕ ВОПРОСЫ | B15: 200 | C15: 000 0100 0000000 000 000 | D15: 46461841.97 | E15: 2675785.22 | F15: =IF(OR(D15="-",E15=D15),"-",D15-IF(E15="-",0,E15)) -> 43786056.75
A16: Функционирование законодательных (представительных) органов государственной власти и представительных органов муниципальных образований | B16: 200 | C16: 000 0103 0000000 000 000 | D16: 530178 | E16: 114926 | F16: 415252
A17: Обеспечение деятельности Совета депутатов | B17: 200 | C17: 000 0103 Г110000 000 000 | D17: 488178 | E17: 114926 | F17: 373252
A18: Расходы на обеспечение функций органов местного самоуправления в рамках обеспечения деятельности Совета депутатов | B18: 200 | C18: 000 0103 Г11Г015 000 000 | D18: 28471 | E18: - | F18: 28471
A19: Иные выплаты персоналу государственных (муниципальных) органов, за исключением фонда оплаты труда | B19: 200 | C19: 000 0103 Г11Г015 122 000 | D19: 26111 | E19: - | F19: 26111
A20: Расходы | B20: 200 | C20: 000 0103 Г11Г015 122 200 | D20: 26111 | E20: - | F20: 26111
A21: Оплата труда и начисления на выплаты по оплате труда | B21: 200 | C21: 000 0103 Г11Г015 122 210 | D21: 20048 | E21: - | F21: 20048
A22: Прочие выплаты | B22: 200 | C22: 000 0103 Г11Г015 122 212 | D22: 20048 | E22: - | F22: 20048
A23: Оплата работ, услуг | B23: 200 | C23: 000 0103 Г11Г015 122 220 | D23: 6063 | E23: - | F23: 6063
A24: Транспортные услуги | B24: 200 | C24: 000 0103 Г11Г015 122 222 | D24: 3063 | E24: - | F24: 3063
A25: Прочие работы, услуги | B25: 200 | C25: 000 0103 Г11Г015 122 226 | D25: 3000 | E25: - | F25: 3000
A26: Закупка товаров, работ, услуг в сфере информационно-коммуникационных технологий | B26: 200 | C26: 000 0103 Г11Г015 242 000 | D26: 2360 | E26: - | F26: 2360
A27: Расходы | B27: 200 | C27: 000 0103 Г11Г015 242 200 | D27: 2360 | E27: - | F27: 2360
A28: Оплата работ, услуг | B28: 200 | C28: 000 0103 Г11Г015 242 220 | D28: 2360 | E28: - | F28: 2360
A29: Прочие работы, услуги | B29: 200 | C29: 000 0103 Г11Г015 242 226 | D29: 2360 | E29: - | F29: 2360
A30: Межбюджетные трансферты бюджетам муниципальных районов из бюджетов поселений на исполнение полномочий по осуществлению внешнего муниципального финансового контроля в рамках обеспечения деятельности Совета депутатов | B30: 200 | C30: 000 0103 Г11П703 000 000 | D30: 459707 | E30: 114926 | F30: 344781
A31: Иные межбюджетные трансферты | B31: 200 | C31: 000 0103 Г11П703 540 000 | D31: 459707 | E31: 114926 | F31: 344781
A32: Расходы | B32: 200 | C32: 000 0103 Г11П703 540 200 | D32: 459707 | E32: 114926 | F32: 344781
A33: Безвозмездные перечисления бюджетам | B33: 200 | C33: 000 0103 Г11П703 540 250 | D33: 459707 | E33: 114926 | F33: 344781
A34: Перечисления другим бюджетам бюджетной системы Российской Федерации | B34: 200 | C34: 000 0103 Г11П703 540 251 | D34: 459707 | E34: 114926 | F34: 344781
A35: Непрограммные расходы органов местного самоуправления по решению общегосударственных вопросов | B35: 200 | C35: 000 0103 Г210000 000 000 | D35: 42000 | E35: - | F35: 42000
A36: Премирование и награждение юридических и физических лиц по решению совета депутатов МО "Город Пикалево" вне системы оплаты труда в рамках непрограммных расходов органов местного самоуправления по решению общегосударственных вопросов | B36: 200 | C36: 000 0103 Г21Г301 000 000 | D36: 42000 | E36: - | F36: 42000
A37: Публичные нормативные выплаты гражданам несоциального характера | B37: 200 | C37: 000 0103 Г21Г301 330 000 | D37: 42000 | E37: - | F37: 42000
A38: Расходы | B38: 200 | C38: 000 0103 Г21Г301 330 200 | D38: 42000 | E38: - | F38: 42000
A39: Прочие расходы | B39: 200 | C39: 000 0103 Г21Г301 330 290 | D39: 42000 | E39: - | F39: 42000
A40: Функционирование Правительства Российской Федерации, высших исполнительных органов государственной власти субъектов Российской Федерации, местных администраций | B40: 200 | C40: 000 0104 0000000 000 000 | D40: 21776207.97 | E40: 1707969.91 | F40: 20068238.06
A41: Обеспечение деятельности главы администрации | B41: 200 | C41: 000 0104 Г120000 000 000 | D41: 1565225 | E41: 113187.82 | F41: 1452037.18
A42: Расходы на выплаты по оплате труда работников органов местного самоуправления в рамках обеспечения деятельности главы администрации | B42: 200 | C42: 000 0104 Г12Г014 000 000 | D42: 1533225 | E42: 112387.82 | F42: 1420837.18
A43: Фонд оплаты труда государственных (муниципальных) органов и взносы по обязательному социальному страхованию | B43: 200 | C43: 000 0104 Г12Г014 121 000 | D43: 1533225 | E43: 112387.82 | F43: 1420837.18
A44: Расходы | B44: 200 | C44: 000 0104 Г12Г014 121 200 | D44: 1533225 | E44: 112387.82 | F44: 1420837.18
A45: Оплата труда и начисления на выплаты по оплате труда | B45: 200 | C45: 000 0104 Г12Г014 121 210 | D45: 1533225 | E45: 112387.82 | F45: 1420837.18
A46: Заработная плата | B46: 200 | C46: 000 0104 Г12Г014 121 211 | D46: 1177592 | E46: 88638.88 | F46: 1088953.12
A47: Начисления на выплаты по оплате труда | B47: 200 | C47: 000 0104 Г12Г014 121 213 | D47: 355633 | E47: 23748.94 | F47: 331884.06
A48: Расходы на обеспечение функций органов местного самоуправления в рамках обеспечения деятельности главы администрации | B48: 200 | C48: 000 0104 Г12Г015 000 000 | D48: 32000 | E48: 800 | F48: 31200
A49: Иные выплаты персоналу государственных (муниципальных) органов, за исключением фонда оплаты труда | B49: 200 | C49: 000 0104 Г12Г015 122 000 | D49: 32000 | E49: 800 | F49: 31200
A50: Расходы | B50: 200 | C50: 000 0104 Г12Г015 122 200 | D50: 32000 | E50: 800 | F50: 31200
A51: Оплата труда и начисления на выплаты по оплате труда | B51: 200 | C51: 000 0104 Г12Г015 122 210 | D51: 32000 | E51: 800 | F51: 31200
A52: Прочие выплаты | B52: 200 | C52: 000 0104 Г12Г015 122 212 | D52: 32000 | E52: 800 | F52: 31200
A53: Обеспечение деятельности администрации | B53: 200 | C53: 000 0104 Г130000 000 000 | D53: 20210982.97 | E53: 1594782.09 | F53: 18616200.88
A54: Расходы на выплаты по оплате труда работников органов местного самоуправления в рамках обеспечения деятельности администрации | B54: 200 | C54: 000 0104 Г13Г014 000 000 | D54: 19544492 | E54: 1539022.55 | F54: 18005469.45
A55: Фонд оплаты труда государственных (муниципальных) органов и взносы по обязательному социальному страхованию | B55: 200 | C55: 000 0104 Г13Г014 121 000 | D55: 19544492 | E55: 1539022.55 | F55: 18005469.45
A56: Расходы | B56: 200 | C56: 000 0104 Г13Г014 121 200 | D56: 19544492 | E56: 1539022.55 | F56: 18005469.45
A57: Оплата труда и начисления на выплаты по оплате труда | B57: 200 | C57: 000 0104 Г13Г014 121 210 | D57: 19544492 | E57: 1539022.55 | F57: 18005469.45
A58: Заработная плата | B58: 200 | C58: 000 0104 Г13Г014 121 211 | D58: 15011131 | E58: 1221851.5 | F58: 13789279.5
A59: Начисления на выплаты по оплате труда | B59: 200 | C59: 000 0104 Г13Г014 121 213 | D59: 4533361 | E59: 317171.05 | F59: 4216189.95
A60: Расходы на обеспечение функций органов местного самоуправления в рамках обеспечения деятельности администрации | B60: 200 | C60: 000 0104 Г13Г015 000 000 | D60: 428790.97 | E60: 16142.88 | F60: 412648.09
A61: Иные выплаты персоналу государственных (муниципальных) органов, за исключением фонда оплаты труда | B61: 200 | C61: 000 0104 Г13Г015 122 000 | D61: 118000 | E61: 3698 | F61: 114302
A62: Расходы | B62: 200 | C62: 000 0104 Г13Г015 122 200 | D62: 118000 | E62: 3698 | F62: 114302
A63: Оплата труда и начисления на выплаты по оплате труда | B63: 200 | C63: 000 0104 Г13Г015 122 210 | D63: 30000 | E63: 2400 | F63: 27600
A64: Прочие выплаты | B64: 200 | C64: 000 0104 Г13Г015 122 212 | D64: 30000 | E64: 2400 | F64: 27600
A65: Оплата работ, услуг | B65: 200 | C65: 000 0104 Г13Г015 122 220 | D65: 88000 | E65: 1298 | F65: 86702
A66: Транспортные услуги | B66: 200 | C66: 000 0104 Г13Г015 122 222 | D66: 70000 | E66: 1298 | F66: 68702
A67: Прочие работы, услуги | B67: 200 | C67: 000 0104 Г13Г015 122 226 | D67: 18000 | E67: - | F67: 18000
A68: Закупка товаров, работ, услуг в сфере информационно-коммуникационных технологий | B68: 200 | C68: 000 0104 Г13Г015 242 000 | D68: 226218 | E68: 8400 | F68: 217818
A69: Расходы | B69: 200 | C69: 000 0104 Г13Г015 242 200 | D69: 226218 | E69: 8400 | F69: 217818
A70: Оплата работ, услуг | B70: 200 | C70: 000 0104 Г13Г015 242 220 | D70: 226218 | E70: 8400 | F70: 217818
A71: Услуги связи | B71: 200 | C71: 000 0104 Г13Г015 242 221 | D71: 78000 | E71: 8400 | F71: 69600
A72: Прочие работы, услуги | B72: 200 | C72: 000 0104 Г13Г015 242 226 | D72: 148218 | E72: - | F72: 148218
A73: Прочая закупка товаров, работ и услуг для обеспечения государственных (муниципальных) нужд | B73: 200 | C73: 000 0104 Г13Г015 244 000 | D73: 77782 | E73: 2000 | F73: 75782
A74: Расходы | B74: 200 | C74: 000 0104 Г13Г015 244 200 | D74: 77782 | E74: 2000 | F74: 75782
A75: Оплата работ, услуг | B75: 200 | C75: 000 0104 Г13Г015 244 220 | D75: 77782 | E75: 2000 | F75: 75782
A76: Работы, услуги по содержанию имущества | B76: 200 | C76: 000 0104 Г13Г015 244 225 | D76: 20782 | E76: - | F76: 20782
A77: Прочие работы, услуги | B77: 200 | C77: 000 0104 Г13Г015 244 226 | D77: 57000 | E77: 2000 | F77: 55000
A78: Уплата прочих налогов, сборов и иных платежей | B78: 200 | C78: 000 0104 Г13Г015 852 000 | D78: 2980 | E78: 744.88 | F78: 2235.12
A79: Расходы | B79: 200 | C79: 000 0104 Г13Г015 852 200 | D79: 2980 | E79: 744.88 | F79: =IF(OR(D79="-",E79=D79),"-",D79-IF(E79="-",0,E79)) -> 2235.12
A80: Прочие расходы | B80: 200 | C80: 000 0104 Г13Г015 852 290 | D80: 2980 | E80: 744.88 | F80: 2235.12
A81: Уплата иных платежей | B81: 200 | C81: 000 0104 Г13Г015 853 000 | D81: 3810.97 | E81: 1300 | F81: 2510.97
A82: Расходы | B82: 200 | C82: 000 0104 Г13Г015 853 200 | D82: 3810.97 | E82: 1300 | F82: 2510.97
A83: Прочие расходы | B83: 200 | C83: 000 0104 Г13Г015 853 290 | D83: 3810.97 | E83: 1300 | F83: 2510.97
A84: Межбюджетные трансферты бюджетам муниципальных районов из бюджетов поселений на исполнение полномочий по осуществлению внешнего муниципального жилищного контроля в рамках непрограммных расходов органов местного самоуправления по вопросам жилищно-коммунального хозяйства | B84: 200 | C84: 000 0104 Г13П704 000 000 | D84: 237700 | E84: 39616.66 | F84: 198083.34
A85: Иные межбюджетные трансферты | B85: 200 | C85: 000 0104 Г13П704 540 000 | D85: 237700 | E85: 39616.66 | F85: 198083.34
A86: Расходы | B86: 200 | C86: 000 0104 Г13П704 540 200 | D86: 237700 | E86: 39616.66 | F86: 198083.34
A87: Безвозмездные перечисления бюджетам | B87: 200 | C87: 000 0104 Г13П704 540 250 | D87: 237700 | E87: 39616.66 | F87: 198083.34
A88: Перечисления другим бюджетам бюджетной системы Российской Федерации | B88: 200 | C88: 000 0104 Г13П704 540 251 | D88: 237700 | E88: 39616.66 | F88: 198083.34
A89: Резервные фонды | B89: 200 | C89: 000 0111 0000000 000 000 | D89: 423000 | E89: - | F89: 423000
A90: Непрограммные расходы органов местного самоуправления по решению общегосударственных вопросов | B90: 200 | C90: 000 0111 Г210000 000 000 | D90: 388000 | E90: - | F90: 388000
A91: Резервный фонд администрации в рамках непрограммных расходов органов местного самоуправления по решению общегосударственных вопросов | B91: 200 | C91: 000 0111 Г21Г101 000 000 | D91: 388000 | E91: - | F91: 388000
A92: Резервные средства | B92: 200 | C92: 000 0111 Г21Г101 870 000 | D92: 388000 | E92: - | F92: 388000
A93: Расходы | B93: 200 | C93: 000 0111 Г21Г101 870 200 | D93: 388000 | E93: - | F93: 388000
A94: Прочие расходы | B94: 200 | C94: 000 0111 Г21Г101 870 290 | D94: 388000 | E94: - | F94: 388000
A95: Подпрограмма "Предупреждение чрезвычайных ситуаций, защита населения и территорий от чрезвычайных ситуаций природного и техногенного характера, развитие гражданской обороны, обеспечение пожарной безопасности и безопасности на водных объектах" муниципальной программы "Безопасность в МО "Город Пикалево" | B95: 200 | C95: 000 0111 П410000 000 000 | D95: 35000 | E95: - | F95: 35000
A96: Резервный фонд администрации по ликвидации чрезвычайных ситуаций природного и техногенного характера и стихийных бедствий в рамках подпрограммы "Предупреждение чрезвычайных ситуаций, защита населения и территорий от чрезвычайных ситуаций природного и техногенного характера, развитие гражданской обороны, обеспечение пожарной безопасности и безопасности на водных объектах" муниципальной программы "Безопасность в МО "Город Пикалево" | B96: 200 | C96: 000 0111 П41П104 000 000 | D96: 35000 | E96: - | F96: 35000
A97: Резервные средства | B97: 200 | C97: 000 0111 П41П104 870 000 | D97: 35000 | E97: - | F97: 35000
A98: Расходы | B98: 200 | C98: 000 0111 П41П104 870 200 | D98: 35000 | E98: - | F98: 35000
A99: Прочие расходы | B99: 200 | C99: 000 0111 П41П104 870 290 | D99: 35000 | E99: - | F99: 35000
A100: Другие общегосударственные вопросы | B100: 200 | C100: 000 0113 0000000 000 000 | D100: 23732456 | E100: 852889.31 | F100: 22879566.69
A101: Непрограммные расходы органов местного самоуправления по решению общегосударственных вопросов | B101: 200 | C101: 000 0113 Г210000 000 000 | D101: 15753064 | E101: 748584.7 | F101: 15004479.3
A102: Обеспечение деятельности муниципальных казенных учреждений в рамках непрограммных расходов органов местного самоуправления по решению общегосударственных вопросов | B102: 200 | C102: 000 0113 Г21Г016 000 000 | D102: 7455609 | E102: 622723.63 | F102: 6832885.37
A103: Фонд оплаты труда казенных учреждений и взносы по обязательному социальному страхованию | B103: 200 | C103: 000 0113 Г21Г016 111 000 | D103: 3251915.45 | E103: 285407.24 | F103: 2966508.21
A104: Расходы | B104: 200 | C104: 000 0113 Г21Г016 111 200 | D104: 3251915.45 | E104: 285407.24 | F104: 2966508.21
A105: Оплата труда и начисления на выплаты по оплате труда | B105: 200 | C105: 000 0113 Г21Г016 111 210 | D105: 3251915.45 | E105: 285407.24 | F105: 2966508.21
A106: Заработная плата | B106: 200 | C106: 000 0113 Г21Г016 111 211 | D106: 2497572.64 | E106: 228779.97 | F106: 2268792.67
A107: Начисления на выплаты по оплате труда | B107: 200 | C107: 000 0113 Г21Г016 111 213 | D107: 754342.81 | E107: 56627.27 | F107: 697715.54
A108: Иные выплаты персоналу казенных учреждений, за исключением фонда оплаты труда | B108: 200 | C108: 000 0113 Г21Г016 112 000 | D108: 35700 | E108: 3200 | F108: 32500
A109: Расходы | B109: 200 | C109: 000 0113 Г21Г016 112 200 | D109: 35700 | E109: 3200 | F109: 32500
A110: Оплата труда и начисления на выплаты по оплате труда | B110: 200 | C110: 000 0113 Г21Г016 112 210 | D110: 26400 | E110: 3200 | F110: 23200
A111: Прочие выплаты | B111: 200 | C111: 000 0113 Г21Г016 112 212 | D111: 26400 | E111: 3200 | F111: 23200
A112: Оплата работ, услуг | B112: 200 | C112: 000 0113 Г21Г016 112 220 | D112: 9300 | E112: - | F112: 9300
A113: Прочие работы, услуги | B113: 200 | C113: 000 0113 Г21Г016 112 226 | D113: 9300 | E113: - | F113: 9300
A114: Закупка товаров, работ, услуг в сфере информационно-коммуникационных технологий | B114: 200 | C114: 000 0113 Г21Г016 242 000 | D114: 983981 | E114: 72768.62 | F114: 911212.38
A115: Расходы | B115: 200 | C115: 000 0113 Г21Г016 242 200 | D115: 566301 | E115: 72768.62 | F115: 493532.38
A116: Оплата работ, услуг | B116: 200 | C116: 000 0113 Г21Г016 242 220 | D116: 566301 | E116: 72768.62 | F116: 493532.38
A117: Услуги связи | B117: 200 | C117: 000 0113 Г21Г016 242 221 | D117: 397728 | E117: 10300.62 | F117: 387427.38
A118: Работы, услуги по содержанию имущества | B118: 200 | C118: 000 0113 Г21Г016 242 225 | D118: 25760 | E118: 800 | F118: 24960
A119: Прочие работы, услуги | B119: 200 | C119: 000 0113 Г21Г016 242 226 | D119: 142813 | E119: 61668 | F119: 81145
A120: Поступление нефинансовых активов | B120: 200 | C120: 000 0113 Г21Г016 242 300 | D120: 417680 | E120: - | F120: 417680
A121: Увеличение стоимости основных средств | B121: 200 | C121: 000 0113 Г21Г016 242 310 | D121: 121980 | E121: - | F121: 121980
A122: Увеличение стоимости материальных запасов | B122: 200 | C122: 000 0113 Г21Г016 242 340 | D122: 295700 | E122: - | F122: 295700
A123: Прочая закупка товаров, работ и услуг для обеспечения государственных (муниципальных) нужд | B123: 200 | C123: 000 0113 Г21Г016 244 000 | D123: 3179396.55 | E123: 260727.83 | F123: 2918668.72
A124: Расходы | B124: 200 | C124: 000 0113 Г21Г016 244 200 | D124: 2283139.55 | E124: 196835.75 | F124: 2086303.8
A125: Оплата работ, услуг | B125: 200 | C125: 000 0113 Г21Г016 244 220 | D125: 2188139.55 | E125: 196835.75 | F125: 1991303.8
A126: Услуги связи | B126: 200 | C126: 000 0113 Г21Г016 244 221 | D126: 61500 | E126: 5500 | F126: 56000
A127: Коммунальные услуги | B127: 200 | C127: 000 0113 Г21Г016 244 223 | D127: 726746 | E127: 84577.69 | F127: 642168.31
A128: Арендная плата за пользование имуществом | B128: 200 | C128: 000 0113 Г21Г016 244 224 | D128: 81883 | E128: - | F128: 81883
A129: Работы, услуги по содержанию имущества | B129: 200 | C129: 000 0113 Г21Г016 244 225 | D129: 684216 | E129: 63969.47 | F129: 620246.53
A130: Прочие работы, услуги | B130: 200 | C130: 000 0113 Г21Г016 244 226 | D130: 633794.55 | E130: 42788.59 | F130: 591005.96
A131: Прочие расходы | B131: 200 | C131: 000 0113 Г21Г016 244 290 | D131: 95000 | E131: - | F131: 95000
A132: Поступление нефинансовых активов | B132: 200 | C132: 000 0113 Г21Г016 244 300 | D132: 896257 | E132: 63892.08 | F132: 832364.92
A133: Увеличение стоимости основных средств | B133: 200 | C133: 000 0113 Г21Г016 244 310 | D133: 48400 | E133: - | F133: 48400
A134: Увеличение стоимости материальных запасов | B134: 200 | C134: 000 0113 Г21Г016 244 340 | D134: 847857 | E134: 63892.08 | F134: 783964.92
A135: Уплата прочих налогов, сборов и иных платежей | B135: 200 | C135: 000 0113 Г21Г016 852 000 | D135: 4616 | E135: 619.94 | F135: 3996.06
A136: Расходы | B136: 200 | C136: 000 0113 Г21Г016 852 200 | D136: 4616 | E136: 619.94 | F136: 3996.06
A137: Прочие расходы | B137: 200 | C137: 000 0113 Г21Г016 852 290 | D137: 4616 | E137: 619.94 | F137: 3996.06
A138: Обеспечение управления активами и приватизации муниципального имущества в рамках непрограммных расходов органов местного самоуправления по решению общегосударственных вопросов | B138: 200 | C138: 000 0113 Г21Г103 000 000 | D138: 600000 | E138: 3500 | F138: 596500
A139: Прочая закупка товаров, работ и услуг для обеспечения государственных (муниципальных) нужд | B139: 200 | C139: 000 0113 Г21Г103 244 000 | D139: 600000 | E139: 3500 | F139: 596500
A140: Расходы | B140: 200 | C140: 000 0113 Г21Г103 244 200 | D140: 600000 | E140: 3500 | F140: 596500
A141: Оплата работ, услуг | B141: 200 | C141: 000 0113 Г21Г103 244 220 | D141: 600000 | E141: 3500 | F141: 596500
A142: Прочие работы, услуги | B142: 200 | C142: 000 0113 Г21Г103 244 226 | D142: 600000 | E142: 3500 | F142: 596500
A143: Содержание и обслуживание объектов муниципального имущества в рамках непрограммных расходов органов местного самоуправления по решению общегосударственных вопросов | B143: 200 | C143: 000 0113 Г21Г104 000 000 | D143: 7422275 | E143: 98245.07 | F143: =IF(OR(D143="-",E143=D143),"-",D143-IF(E143="-",0,E143)) -> 7324029.93
A144: Прочая закупка товаров, работ и услуг для обеспечения государственных (муниципальных) нужд | B144: 200 | C144: 000 0113 Г21Г104 244 000 | D144: 7043460 | E144: 3615.92 | F144: 7039844.08
A145: Расходы | B145: 200 | C145: 000 0113 Г21Г104 244 200 | D145: 6365599.61 | E145: 3615.92 | F145: 6361983.69
A146: Оплата работ, услуг | B146: 200 | C146: 000 0113 Г21Г104 244 220 | D146: 6365599.61 | E146: 3615.92 | F146: 6361983.69
A147: Работы, услуги по содержанию имущества | B147: 200 | C147: 000 0113 Г21Г104 244 225 | D147: 6365599.61 | E147: 3615.92 | F147: 6361983.69
A148: Поступление нефинансовых активов | B148: 200 | C148: 000 0113 Г21Г104 244 300 | D148: 677860.39 | E148: - | F148: 677860.39
A149: Увеличение стоимости основных средств | B149: 200 | C149: 000 0113 Г21Г104 244 310 | D149: 677860.39 | E149: - | F149: 677860.39
A150: Субсидии юридическим лицам (кроме некоммерческих организаций), индивидуальным предпринимателям, физическим лицам | B150: 200 | C150: 000 0113 Г21Г104 810 000 | D150: 378815 | E150: 94629.15 | F150: 284185.85
A151: Расходы | B151: 200 | C151: 000 0113 Г21Г104 810 200 | D151: 378815 | E151: 94629.15 | F151: 284185.85
A152: Безвозмездные перечисления организациям | B152: 200 | C152: 000 0113 Г21Г104 810 240 | D152: 378815 | E152: 94629.15 | F152: 284185.85
A153: Безвозмездные перечисления организациям, за исключением государственных и муниципальных организаций | B153: 200 | C153: 000 0113 Г21Г104 810 242 | D153: 378815 | E153: 94629.15 | F153: 284185.85
A154: Ежегодный членский взнос в Ассоциацию "Совет муниципальных образований Ленинградской области" в рамках непрограммных расходов органов местного самоуправления по решению общегосударственных вопросов | B154: 200 | C154: 000 0113 Г21Г105 000 000 | D154: 36655 | E154: - | F154: 36655
A155: Уплата иных платежей | B155: 200 | C155: 000 0113 Г21Г105 853 000 | D155: 36655 | E155: - | F155: 36655
A156: Расходы | B156: 200 | C156: 000 0113 Г21Г105 853 200 | D156: 36655 | E156: - | F156: 36655
A157: Прочие расходы | B157: 200 | C157: 000 0113 Г21Г105 853 290 | D157: 36655 | E157: - | F157: 36655
A158: Ежегодный членский взнос в Союз малых городов Российской Федерации в рамках непрограммных расходов органов местного самоуправления по решению общегосударственных вопросов | B158: 200 | C158: 000 0113 Г21Г106 000 000 | D158: 21525 | E158: - | F158: 21525
A159: Уплата иных платежей | B159: 200 | C159: 000 0113 Г21Г106 853 000 | D159: 21525 | E159: - | F159: 21525
A160: Расходы | B160: 200 | C160: 000 0113 Г21Г106 853 200 | D160: 21525 | E160: - | F160: 21525
A161: Прочие расходы | B161: 200 | C161: 000 0113 Г21Г106 853 290 | D161: 21525 | E161: - | F161: 21525
A162: Обеспечение органов местного самоуправления статистической информацией в рамках непрограммных расходов органов местного самоуправления по решению общегосударственных вопросов | B162: 200 | C162: 000 0113 Г21Г107 000 000 | D162: 83000 | E162: 24116 | F162: 58884
A163: Прочая закупка товаров, работ и услуг для обеспечения государственных (муниципальных) нужд | B163: 200 | C163: 000 0113 Г21Г107 244 000 | D163: 83000 | E163: 24116 | F163: 58884
A164: Расходы | B164: 200 | C164: 000 0113 Г21Г107 244 200 | D164: 83000 | E164: 24116 | F164: 58884
A165: Оплата работ, услуг | B165: 200 | C165: 000 0113 Г21Г107 244 220 | D165: 83000 | E165: 24116 | F165: 58884
A166: Прочие работы, услуги | B166: 200 | C166: 000 0113 Г21Г107 244 226 | D166: 83000 | E166: 24116 | F166: 58884
A167: Мероприятия по диспансеризации лиц, замещающих муниципальные должности и должности муниципальных служащих в рамках непрограммных расходов органов местного самоуправления по решению общегосударственных вопросов | B167: 200 | C167: 000 0113 Г21Г108 000 000 | D167: 84000 | E167: - | F167: 84000
A168: Прочая закупка товаров, работ и услуг для обеспечения государственных (муниципальных) нужд | B168: 200 | C168: 000 0113 Г21Г108 244 000 | D168: 84000 | E168: - | F168: 84000
A169: Расходы | B169: 200 | C169: 000 0113 Г21Г108 244 200 | D169: 84000 | E169: - | F169: 84000
A170: Оплата работ, услуг | B170: 200 | C170: 000 0113 Г21Г108 244 220 | D170: 84000 | E170: - | F170: 84000
A171: Прочие работы, услуги | B171: 200 | C171: 000 0113 Г21Г108 244 226 | D171: 84000 | E171: - | F171: 84000
A172: Исполнение судебных актов, вступивших в законную силу, по искам к МО "Город Пикалево" в рамках непрограммных расходов органов местного самоуправления по решению общегосударственных вопросов | B172: 200 | C172: 000 0113 Г21Г109 000 000 | D172: 50000 | E172: - | F172: 50000
A173: Исполнение судебных актов Российской Федерации и мировых соглашений по возмещению вреда, причиненного в результате незаконных действий (бездействия) органов государственной власти (государственных органов), органов местного самоуправления либо должностных лиц этих органов, а также в результате деятельности казенных учреждений | B173: 200 | C173: 000 0113 Г21Г109 831 000 | D173: 50000 | E173: - | F173: 50000
A174: Расходы | B174: 200 | C174: 000 0113 Г21Г109 831 200 | D174: 50000 | E174: - | F174: 50000
A175: Прочие расходы | B175: 200 | C175: 000 0113 Г21Г109 831 290 | D175: 50000 | E175: - | F175: 50000
A176: Подпрограмма "Обеспечение правопорядка и профилактика правонарушений" муниципальной программы "Безопасность в МО "Город Пикалево" | B176: 200 | C176: 000 0113 П420000 000 000 | D176: 7543200 | E176: 90899.21 | F176: 7452300.79
A177: Создание в МО "Город Пикалево" аппаратно-программного комплекса автоматизированной информационной системы "Безопасный город" за счет средств областного бюджета в рамках подпрограммы "Обеспечение правопорядка и профилактика правонарушений" муниципальной программы "Безопасность в МО "Город Пикалево" | B177: 200 | C177: 000 0113 П427043 000 000 | D177: 5700000 | E177: - | F177: 5700000
A178: Прочая закупка товаров, работ и услуг для обеспечения государственных (муниципальных) нужд | B178: 200 | C178: 000 0113 П427043 244 000 | D178: 5700000 | E178: - | F178: 5700000
A179: Расходы | B179: 200 | C179: 000 0113 П427043 244 200 | D179: 5700000 | E179: - | F179: 5700000
A180: Оплата работ, услуг | B180: 200 | C180: 000 0113 П427043 244 220 | D180: 5700000 | E180: - | F180: 5700000
A181: Прочие работы, услуги | B181: 200 | C181: 000 0113 П427043 244 226 | D181: 5700000 | E181: - | F181: 5700000
A182: Профилактика безнадзорности и правонарушений несовершеннолетних за счет средств субвенции областного бюджета в рамках подпрограммы "Обеспечение правопорядка и профилактика правонарушений" государственной программы Ленинградской области "Безопасность Ленинградской области" в рамках подпрограммы "Обеспечение правопорядка и профилактика правонарушений" муниципальной программы "Безопасность в МО "Город Пикалево" | B182: 200 | C182: 000 0113 П427133 000 000 | D182: 555100 | E182: 48652.18 | F182: 506447.82
A183: Фонд оплаты труда государственных (муниципальных) органов и взносы по обязательному социальному страхованию | B183: 200 | C183: 000 0113 П427133 121 000 | D183: 529872 | E183: 46605.08 | F183: 483266.92
A184: Расходы | B184: 200 | C184: 000 0113 П427133 121 200 | D184: 529872 | E184: 46605.08 | F184: 483266.92
A185: Оплата труда и начисления на выплаты по оплате труда | B185: 200 | C185: 000 0113 П427133 121 210 | D185: 529872 | E185: 46605.08 | F185: 483266.92
A186: Заработная плата | B186: 200 | C186: 000 0113 П427133 121 211 | D186: 406968 | E186: 37650.6 | F186: 369317.4
A187: Начисления на выплаты по оплате труда | B187: 200 | C187: 000 0113 П427133 121 213 | D187: 122904 | E187: 8954.48 | F187: 113949.52
A188: Иные выплаты персоналу государственных (муниципальных) органов, за исключением фонда оплаты труда | B188: 200 | C188: 000 0113 П427133 122 000 | D188: 800 | E188: 200 | F188: 600
A189: Расходы | B189: 200 | C189: 000 0113 П427133 122 200 | D189: 800 | E189: 200 | F189: 600
A190: Оплата труда и начисления на выплаты по оплате труда | B190: 200 | C190: 000 0113 П427133 122 210 | D190: 800 | E190: 200 | F190: 600
A191: Прочие выплаты | B191: 200 | C191: 000 0113 П427133 122 212 | D191: 800 | E191: 200 | F191: 600
A192: Закупка товаров, работ, услуг в сфере информационно-коммуникационных технологий | B192: 200 | C192: 000 0113 П427133 242 000 | D192: 16995 | E192: 1662.6 | F192: 15332.4
A193: Расходы | B193: 200 | C193: 000 0113 П427133 242 200 | D193: 12195 | E193: 1662.6 | F193: 10532.4
A194: Оплата работ, услуг | B194: 200 | C194: 000 0113 П427133 242 220 | D194: 12195 | E194: 1662.6 | F194: 10532.4
A195: Услуги связи | B195: 200 | C195: 000 0113 П427133 242 221 | D195: 12195 | E195: 1662.6 | F195: 10532.4
A196: Поступление нефинансовых активов | B196: 200 | C196: 000 0113 П427133 242 300 | D196: 4800 | E196: - | F196: 4800
A197: Увеличение стоимости материальных запасов | B197: 200 | C197: 000 0113 П427133 242 340 | D197: 4800 | E197: - | F197: 4800
A198: Прочая закупка товаров, работ и услуг для обеспечения государственных (муниципальных) нужд | B198: 200 | C198: 000 0113 П427133 244 000 | D198: 7433 | E198: 184.5 | F198: 7248.5
A199: Расходы | B199: 200 | C199: 000 0113 П427133 244 200 | D199: 6400 | E199: 184.5 | F199: 6215.5
A200: Оплата работ, услуг | B200: 200 | C200: 000 0113 П427133 244 220 | D200: 6400 | E200: 184.5 | F200: 6215.5
A201: Услуги связи | B201: 200 | C201: 000 0113 П427133 244 221 | D201: 6400 | E201: 184.5 | F201: 6215.5
A202: Поступление нефинансовых активов | B202: 200 | C202: 000 0113 П427133 244 300 | D202: 1033 | E202: - | F202: 1033
A203: Увеличение стоимости материальных запасов | B203: 200 | C203: 000 0113 П427133 244 340 | D203: 1033 | E203: - | F203: 1033
A204: Мероприятия в сфере административных правоотношений за счет средств субвенции областного бюджета в рамках подпрограммы "Обеспечение правопорядка и профилактика правонарушений" государственной программы Ленинградской области "Безопасность Ленинградской области" в рамках подпрограммы "Обеспечение правопорядка и профилактика правонарушений" муниципальной программы "Безопасность в МО "Город Пикалево" | B204: 200 | C204: 000 0113 П427134 000 000 | D204: 568100 | E204: 42247.03 | F204: 525852.97
A205: Фонд оплаты труда государственных (муниципальных) органов и взносы по обязательному социальному страхованию | B205: 200 | C205: 000 0113 П427134 121 000 | D205: 529872 | E205: 42247.03 | F205: 487624.97
A206: Расходы | B206: 200 | C206: 000 0113 П427134 121 200 | D206: 529872 | E206: 42247.03 | F206: 487624.97
A207: Оплата труда и начисления на выплаты по оплате труда | B207: 200 | C207: 000 0113 П427134 121 210 | D207: 529872 | E207: 42247.03 | F207: =IF(OR(D207="-",E207=D207),"-",D207-IF(E207="-",0,E207)) -> 487624.97
A208: Заработная плата | B208: 200 | C208: 000 0113 П427134 121 211 | D208: 406968 | E208: 33375.6 | F208: 373592.4
A209: Начисления на выплаты по оплате труда | B209: 200 | C209: 000 0113 П427134 121 213 | D209: 122904 | E209: 8871.43 | F209: 114032.57
... 312 more rows

Sheet ExportParams (hidden)
A1: EXPORT_SRC_KIND | B1: ПосОБР
A2: EXPORT_PARAM_SRC_KIND | B2: 3
A3: EXPORT_SRC_CODE | B3: 45012
A4: EXPORT_VB_CODE | B4: 3

Sheet Источники
A1: Форма 0503117 с.3
A2: 3. Источники финансирования дефицита бюджета
A4: Наименование показателя | B4: Код строки | C4: Код источника финансирования дефицита бюджета по бюджетной классификации | D4: Утвержденные бюджетные назначения | E4: Исполнено | F4: Неисполненные назначения
A5: 1 | B5: 2 | C5: 3 | D5: 4 | E5: 5 | F5: 6
A6: Источники финансирования дефицита бюджета - всего | B6: 500 | C6: *** 90000000000000 000 | D6: 20222852.49 | E6: 46004774.84 | F6: =SUM(D6-E6) -> -25781922.35
A7: в том числе:
A8: источники внутреннего финансирования бюджета | B8: 520 | C8: *** 01000000000000 000 | D8: 10804014 | E8: - | F8: 10804014
A9: из них:
A10: Кредиты кредитных организаций в валюте Российской Федерации | B10: 520 | C10: 000 01020000000000 000 | D10: 6224700 | E10: - | F10: 6224700
A11: Получение кредитов от кредитных организаций в валюте Российской Федерации | B11: 520 | C11: 000 01020000000000 700 | D11: 10000000 | E11: - | F11: 10000000
A12: Получение кредитов от кредитных организаций бюджетами поселений в валюте Российской Федерации | B12: 520 | C12: 000 01020000130000 710 | D12: 10000000 | E12: - | F12: 10000000
A13: Погашение кредитов, предоставленных кредитными организациями в валюте Российской Федерации | B13: 520 | C13: 000 01020000000000 800 | D13: -3775300 | E13: - | F13: -3775300
A14: Погашение бюджетами поселений кредитов от кредитных организаций в валюте Российской Федерации | B14: 520 | C14: 000 01020000130000 810 | D14: -3775300 | E14: - | F14: -3775300
A15: Бюджетные кредиты от других бюджетов бюджетной системы Российской Федерации | B15: 520 | C15: 000 01030000000000 000 | D15: -3534286 | E15: - | F15: -3534286
A16: Бюджетные кредиты от других бюджетов бюджетной системы Российской Федерации в валюте Российской Федерации | B16: 520 | C16: 000 01030100000000 000 | D16: -3534286 | E16: - | F16: -3534286
A17: Погашение бюджетых кредитов, полученных от других бюджетов бюджетной системы Российской Федерации в валюте Российской Федерации | B17: 520 | C17: 000 01030100000000 800 | D17: -3534286 | E17: - | F17: -3534286
A18: Погашение бюджетами поселений кредитов от других бюджетов бюджетной системы Российской Федерации в валюте Российской Федерации | B18: 520 | C18: 000 01030100130000 810 | D18: -3534286 | E18: - | F18: -3534286
A19: Иные источники внутреннего финансирования дефицита бюджета | B19: 520 | C19: 000 01060000000000 000 | D19: 8113600 | F19: 8113600
A20: Акции и иные формы участия в капитале, находящихся в государственной и муниципальной собственности | B20: 520 | C20: 000 01060100000000 000 | D20: 5713600 | E20: - | F20: 5713600
A21: Средства от продажи акций и иных форм участия в капитале, находящихся в государственной и муниципальной собственности | B21: 520 | C21: 000 01060100000000 630 | D21: 5713600 | E21: - | F21: 5713600
A22: Средства от продажи акций и иных форм участия в капитале, находящихся в собственности поселений | B22: 520 | C22: 000 01060100130000 630 | D22: 5713600 | E22: - | F22: 5713600
A23: Исполнение государственных и муниципальных гарантий | B23: 520 | C23: 000 01060400000000 000 | D23: -7779403 | E23: - | F23: -7779403
A24: Исполнение государственных и муниципальных гарантий в валюте Российской Федерации | B24: 520 | C24: 000 01060401000000 000 | D24: -7779403 | E24: - | F24: -7779403
A25: Исполнение государственных и муниципальных гарантий в валюте Российской Федерации в случае, если исполнение гарантом муниципальных гарантий ведет к возникновению права регрессного требования гаранта к принципалу либо обусловлено уступкой гаранту прав требования бенефициара к принципалу | B25: 520 | C25: 000 01060401000000 800 | D25: -7779403 | E25: - | F25: -7779403
A26: Исполнение муниципальных гарантий поселений в валюте Российской Федерации в случае, если исполнение гарантом муниципальных гарантий ведет к возникновению права регрессного требования гаранта к принципалу либо обусловлено уступкой гаранту прав требования бенефициара к принципалу | B26: 520 | C26: 000 01060401130000 810 | D26: -7779403 | E26: - | F26: -7779403
A27: Прочие бюджетные кредиты (ссуды), предоставленные внутри страны | B27: 520 | C27: 000 01060800000000 000 | D27: 10179403 | E27: - | F27: 10179403
A28: Возврат прочих бюджетных кредитов (ссуд), предоставленные внутри страны | B28: 520 | C28: 000 01060800000000 600 | D28: 10179403 | E28: - | F28: 10179403
A29: Возврат прочих бюджетных кредитов (ссуд), предоставленных бюджетами поселений внутри страны | B29: 520 | C29: 000 01060800130000 640 | D29: 10179403 | E29: - | F29: 10179403
A30: Изменение остатков средств | B30: 700 | C30: *** 01000000000000 000 | D30: 9418838.49 | E30: 46004774.84 | F30: =SUM(D30-E30) -> -36585936.35
A31: Изменение остатков средств на счетах по учету средств бюджета | B31: 700 | C31: *** 01050000000000 000 | D31: 9418838.49 | E31: 46004774.84 | F31: =SUM(D31-E31) -> -36585936.35
A32: увеличение остатков средств бюджетов | B32: 710 | C32: 000 01050000000000 500 | D32: -238656319.3 | E32: -14598982.23 | F32: x
A33: увеличение прочих остатков средств бюджетов | B33: 710 | C33: 000 01050200000000 500 | D33: -238656319.3 | E33: -14598982.23 | F33: x
A34: увеличение прочих остатков денежных средств бюджетов | B34: 710 | C34: 000 01050201000000 510 | D34: -238656319.3 | E34: -14598982.23 | F34: x
A35: Увеличение прочих остатков денежных средств бюджетов поселений | B35: 710 | C35: 000 01050201130000 510 | D35: -238656319.3 | E35: -14598982.23 | F35: x
A36: уменьшение остатков средств бюджетов | B36: 720 | C36: 000 01050000000000 600 | D36: 248075157.8 | E36: 60603757.07 | F36: x
A37: уменьшение прочих остатков средств бюджетов | B37: 720 | C37: 000 01050200000000 600 | D37: 248075157.8 | E37: 60603757.07 | F37: x
A38: уменьшение прочих остатков денежных средств бюджетов | B38: 720 | C38: 000 01050201000000 610 | D38: 248075157.8 | E38: 60603757.07 | F38: x
A39: Уменьшение прочих остатков денежных средств бюджетов поселений | B39: 720 | C39: 000 01050201130000 610 | D39: 248075157.8 | E39: 60603757.07 | F39: x
A42: Глава администрации | D42: Д.В. Николаев
A45: Заведующий отделом финансов | D45: И.Ю. Жолудева
A47: 06 марта 2015 года
